lending/lending_fUSD_20260209
["ID","MTS","AMOUNT","RATE_DAILY","PERIOD"]
[404815587,1770595267119,165.61,0.00028302,2]
[404815588,1770595272349,195.0,0.00034904,120]
[404815589,1770595420559,299.99,0.00035542,30]
[404815590,1770595589362,250.0,0.00035544,120]
[404815591,1770595589648,250.0,0.00035544,120]
[404815592,1770595589942,250.0,0.00035544,120]
[404815593,1770595590244,250.0,0.00035544,120]
[404815594,1770595590544,250.0,0.00035544,120]
[404815595,1770595590824,250.000001,0.00035544,120]
[404815596,1770595687507,150.48,0.00034838,30]
[404815597,1770595806784,195.0,0.00034694,120]
[404815598,1770595831864,-403.32000001,0.00034679,2]
[404815599,1770595832021,-96.67999999,0.00034679,2]
[404815600,1770595832033,-250.0,0.00034708,2]
[404815601,1770595832043,-154.9627414,0.00034708,2]
[404815602,1770595832057,-1160.80147056,0.00034737,2]
[404815607,1770595837972,-154.9627414,0.00034708,2]
[404815608,1770595837982,-691.61852944,0.00034737,2]
[404815609,1770595837995,-150.0,0.00034767,2]
[404815610,1770595838005,-150.0,0.00034904,2]
[404815611,1770595838014,-159.03,0.00035026,2]
[404815612,1770595838024,-247.53,0.00035378,2]
[404815613,1770595838035,-1600.0,0.00035441,3]
[404815614,1770595838045,-1297.90689183,0.00035442,2]
[404815615,1770595838056,-1183.55559938,0.00035442,2]
[404815616,1770595838068,-279.40869711,0.00035442,2]
[404815617,1770595838078,-150.0,0.00035449,3]
[404815618,1770595838087,-1796.86,0.0003545,2]
[404815619,1770595838097,-1000.0,0.00035541,2]
[404815620,1770595838106,-500.0,0.00035541,7]
[404815621,1770595838116,-500.0,0.00035541,7]
[404815622,1770595838125,-540.25759694,0.00035541,7]
[404815623,1770595838135,-500.0,0.00035541,7]
[404815624,1770595838145,-500.0,0.00035541,7]
[404815625,1770595838154,-307.80143267,0.00035541,7]
[404815626,1770595838164,-427.79,0.00035542,15]
[404815627,1770595838174,-1183.2,0.00035542,2]
[404815628,1770595838184,-57268.85731441,0.00035542,10]
[404815629,1770595838195,-200673.01268559,0.00035542,10]
[404815630,1770595838205,-349.13,0.00035542,2]
[404815631,1770595838214,-14017.59,0.00035542,2]
[404815632,1770595838223,-150.99,0.00035542,2]
[404815633,1770595838233,-7125.93,0.00035542,2]
[404815634,1770595838242,-9999.99,0.00035542,2]
[404815635,1770595838252,-9999.99,0.00035542,2]
[404815636,1770595838262,-9999.99,0.00035542,2]
[404815637,1770595838272,-9340.83,0.00035542,15]
[404815638,1770595838281,-1471.2,0.00035542,2]
[404815639,1770595838291,-9999.99,0.00035542,2]
[404815640,1770595838300,-999.99,0.00035542,2]
[404815642,1770595838311,-9999.99,0.00035542,2]
[404815644,1770595838321,-9999.99,0.00035542,2]
[404815645,1770595838330,-259.12404434,0.00035584,8]
[404815646,1770595838339,-10475.0,0.00035644,120]
[404815647,1770595838349,-155.0,0.00035683,2]
[404815648,1770595838358,-1163.957,0.00035683,42]
[404815649,1770595838368,-184.13,0.00035683,42]
[404815650,1770595838377,-150.0,0.00035683,20]
[404815651,1770595838387,-1000.0,0.00035684,2]
[404815652,1770595838396,-150.0,0.00035784,2]
[404815653,1770595838406,-2000.0,0.000359,2]
[404815654,1770595838415,-154.9627414,0.00036047,2]
[404815655,1770595838425,-1013.85,0.00036098,2]
[404815656,1770595838434,-931.1,0.00036185,2]
[404815657,1770595838443,-166.66,0.00036248,30]
[404815658,1770595838453,-200.0,0.00036282,2]
[404815659,1770595838462,-1297.90689178,0.00036415,2]
[404815660,1770595838471,-279.4086971,0.00036424,2]
[404815661,1770595838480,-150.0,0.00036649,2]
[404815662,1770595838490,-1183.55559934,0.00036705,2]
[404815663,1770595838499,-152.0,0.0003671,3]
[404815664,1770595838508,-4710.2092151,0.00036864,2]
[404815665,1770595838517,-830.7702127,0.00036865,2]
[404815666,1770595838527,-151.0,0.00036962,14]
[404815667,1770595838536,-59112.75291275,0.00036965,2]
[404815668,1770595838547,-500.0,0.00036965,2]
[404815669,1770595838560,-302.38540097,0.00036965,2]
[404815670,1770595838571,-1605.83513592,0.00036965,2]
[404815671,1770595838582,-292.212863,0.00036965,2]
[404815672,1770595839995,-20812.31448118,0.00036965,2]
[404815673,1770595840007,-325.47403664,0.00036965,2]
[404815674,1770595840019,-1770.475,0.00036965,2]
[404815675,1770595840031,-2290.38582166,0.00036965,2]
[404815676,1770595840042,-2377.47091591,0.00036965,2]
[404815677,1770595840154,-32767.06952706,0.00036965,2]
[404815678,1770595840164,-166.66,0.00036995,30]
[404815679,1770595840174,-154.9627414,0.00037386,2]
[404815680,1770595840183,-1297.90689178,0.00037388,2]
[404815681,1770595840193,-279.4086971,0.00037407,2]
[404815682,1770595840202,-1000.0,0.00037549,2]
[404815683,1770595840211,-166.66,0.00037743,30]
[404815684,1770595840221,-259.12404431,0.00037756,11]
[404815685,1770595840230,-1183.55559934,0.00037968,2]
[404815686,1770595840239,-1759.0,0.00038,30]
[404815687,1770595840249,-261.0,0.00038133,3]
[404815688,1770595840258,-701.87,0.00038147,120]
[404815689,1770595840267,-250.0,0.00038147,2]
[404815690,1770595840277,-250.0,0.00038147,2]
[404815691,1770595840286,-195.0,0.00038147,120]
[404815692,1770595840295,-195.0,0.00038147,120]
[404815693,1770595840306,-245.67,0.00038187,2]
[404815694,1770595840316,-150.5,0.00038239,2]
[404815695,1770595840326,-152.0,0.00038306,4]
[404815696,1770595840335,-279.02493881,0.00038306,5]
[404815697,1770595840344,-1297.90689178,0.00038361,2]
[404815698,1770595840353,-279.4086971,0.00038389,2]
[404815699,1770595840362,-150.0,0.00038482,2]
[404815700,1770595840372,-166.66,0.0003849,30]
[404815701,1770595840381,-1202.13,0.00038678,2]
[404815702,1770595840391,-154.9627414,0.00038725,2]
[404815703,1770595840400,-8406.0,0.00038778,5]
[404815704,1770595840410,-1368.0,0.000389,2]
[404815705,1770595840419,-206.93,0.00038961,5]
[404815706,1770595840428,-7161.06,0.00038979,2]
[404815707,1770595840438,-1183.55559934,0.00039231,2]
[404815708,1770595840449,-166.66,0.00039237,30]
[404815710,1770595840458,-5000.0,0.000393,120]
[404815711,1770595840468,-1297.90689178,0.00039334,2]
[404815713,1770595840478,-279.4086971,0.00039372,2]
[404815716,1770595840488,-68943.87107223,0.00039465,2]
[404815718,1770595840501,-11948.19325794,0.00039465,2]
[404815720,1770595840510,-150.5,0.00039577,2]
[404815722,1770595840519,-2000.0,0.000396,2]
[404815724,1770595840529,-200.0,0.00039765,2]
[404815725,1770595840539,-229.66150864,0.00039773,5]
[404815727,1770595840548,-500.0,0.00039773,5]
[404815729,1770595840558,-587.12032473,0.00039773,5]
[404815731,1770595840567,-259.12404431,0.00039928,13]
[404815733,1770595840577,-572.03870209,0.00039931,2]
[404815735,1770595840586,-150.0,0.00039931,7]
[404815737,1770595840596,-150.0,0.00039931,7]
[404815739,1770595840605,-150.0,0.00039931,7]
[404815741,1770595840615,-150.0,0.00039931,7]
[404815743,1770595840624,-150.0,0.00039931,7]
[404815745,1770595840635,-150.0,0.00039931,7]
[404815747,1770595840645,-150.0,0.00039931,7]
[404815749,1770595840654,-150.0,0.00039931,7]
[404815750,1770595840663,-154.0,0.0004,120]
[404815751,1770595840672,-513.77859925,0.0004,2]
[404815752,1770595840682,-245.67,0.00040005,2]
[404815753,1770595840691,-770.9,0.00040017,2]
[404815754,1770595840700,-150.0,0.00040058,7]
[404815755,1770595840709,-154.9627414,0.00040065,2]
[404815756,1770595840718,-150.0,0.00040185,7]
[404815757,1770595840727,-15569.53050563,0.00040197,2]
[404815758,1770595840736,-150.0,0.00040227,7]
[404815759,1770595840745,-150.0,0.00040272,7]
[404815760,1770595840755,-150.0,0.00040272,7]
[404815761,1770595840764,-1297.90689178,0.00040308,15]
[404815762,1770595840773,-150.0,0.00040311,7]
[404815763,1770595840782,-433.80361693,0.00040321,5]
[404815764,1770595840791,-279.4086971,0.00040354,15]
[404815765,1770595840800,-150.0,0.00040375,7]
[404815766,1770595840811,-150.0,0.00040424,7]
[404815767,1770595840820,-150.0,0.00040438,7]
[404815768,1770595840829,-1183.55559934,0.00040495,28]
[404815769,1770595840838,-150.0,0.00040523,7]
[404815770,1770595840848,-300.0,0.00040548,2]
[404815771,1770595840857,-150.0,0.00040565,7]
[404815772,1770595840866,-150.0,0.00040614,7]
[404815773,1770595840875,-150.0,0.00040614,7]
[404815774,1770595840885,-10872.91485445,0.00040664,2]
[404815775,1770595840985,-29156.67556845,0.00040664,2]
[404815776,1770595840997,-150.0,0.00040692,7]
[404815777,1770595841007,-150.0,0.00040819,7]
[404815778,1770595841016,-150.0,0.00040819,7]
[404815779,1770595841025,-150.0,0.00040819,7]
[404815780,1770595841038,-1000.0,0.00040856,20]
[404815781,1770595841047,-159.03,0.00040863,2]
[404815782,1770595841060,-150.0,0.00040917,7]
[404815783,1770595841069,-150.0,0.00040945,7]
[404815784,1770595841078,-150.0,0.00040955,7]
[404815785,1770595841088,-150.0,0.00040955,7]
[404815786,1770595841097,-154.0,0.00041,120]
[404815787,1770595841106,-74036.7123247,0.00041009,2]
[404815788,1770595841115,-2436.55069835,0.00041062,2]
[404815789,1770595841125,-150.0,0.00041072,7]
[404815790,1770595841134,-150.0,0.00041114,30]
[404815791,1770595841144,-150.0,0.00041199,30]
[404815792,1770595841153,-150.0,0.00041262,30]
[404815793,1770595841162,-1297.90689178,0.00041281,15]
[404815794,1770595841172,-150.0,0.00041296,30]
[404815795,1770595841180,-150.0,0.00041296,30]
[404815796,1770595841190,-150.0,0.00041326,30]
[404815797,1770595841199,-279.4086971,0.00041337,15]
[404815798,1770595841208,-154.9627414,0.00041404,2]
[404815799,1770595841217,-150.0,0.0004141,30]
[404815800,1770595841227,-150.0,0.0004141,30]
[404815801,1770595841236,-150.0,0.00041452,30]
[404815802,1770595841245,-1050.9897365,0.00041534,2]
[404815803,1770595841254,-150.0,0.00041579,30]
[404815804,1770595841263,-917.0,0.00041622,2]
[404815805,1770595841272,-301.34,0.00041622,2]
[404815806,1770595841281,-412.0,0.00041622,2]
[404815807,1770595841291,-6585.0,0.00041622,2]
[404815808,1770595841302,-150.0,0.00041638,30]
[404815809,1770595841312,-150.0,0.00041638,30]
[404815810,1770595841321,-150.0,0.00041706,30]
[404815811,1770595841330,-150.0,0.00041706,30]
[404815812,1770595841340,-150.0,0.00041706,30]
[404815813,1770595841350,-1183.55559934,0.00041758,28]
[404815814,1770595841360,-245.67,0.00041823,2]
[404815815,1770595841371,-150.0,0.00041833,30]
[404815816,1770595841383,-150.0,0.00041903,30]
[404815817,1770595841397,-296.93,0.00041938,14]
[404815818,1770595841409,-150.0,0.00041959,30]
[404815819,1770595841421,-150.0,0.00041979,30]
[404815820,1770595841433,-150.0,0.00041979,30]
[404815821,1770595841444,-213.75126474,0.00042,2]
[404815822,1770595841455,-150.0,0.00042002,30]
[404815823,1770595841465,-150.0,0.00042086,30]
[404815824,1770595841475,-259.12404431,0.00042099,16]
[404815825,1770595841485,-154.0,0.000421,120]
[404815826,1770595841495,-150.0,0.0004215,30]
[404815827,1770595841504,-309.98,0.00042181,14]
[404815828,1770595841515,-150.0,0.00042213,30]
[404815829,1770595841525,-1000.0,0.00042242,2]
[404815830,1770595841536,-1297.90689178,0.00042254,15]
[404815831,1770595841546,-150.0,0.00042297,30]
[404815832,1770595841558,-279.4086971,0.00042319,15]
[404815833,1770595841569,-150.0,0.0004232,30]
[404815834,1770595841579,-150.0,0.0004232,30]
[404815835,1770595841591,-150.0,0.0004234,30]
[404815836,1770595841601,-150.0,0.00042396,30]
[404815837,1770595841611,-500.0,0.00042438,120]
[404815838,1770595841624,-150.0,0.00042467,30]
[404815839,1770595841634,-568.20404472,0.00042575,120]
[404815840,1770595841645,-234.5075082,0.00042576,2]
[404815841,1770595841655,-150.0,0.00042593,30]
[404815842,1770595841666,-150.0,0.00042593,30]
[404815843,1770595841677,-150.0,0.00042593,30]
[404815844,1770595841688,-1368.426683,0.000426,2]
[404815845,1770595841699,-150.0,0.00042662,30]
[404815846,1770595841709,-150.0,0.00042662,30]
[404815847,1770595841719,-840.0,0.00042684,16]
[404815848,1770595841729,-150.0,0.0004272,30]
[404815849,1770595841739,-164.0,0.00042739,16]
[404815850,1770595841749,-800.0,0.0004274,7]
[404815851,1770595841759,-2827.0,0.00042757,16]
[404815852,1770595841769,-190.53,0.000428,120]
[404815853,1770595841779,-150.0,0.00042847,30]
[404815854,1770595841788,-38932.0,0.00042862,30]
[404815855,1770595841797,-150.0,0.00042889,30]
[404815856,1770595841808,-150.0,0.00042889,30]
[404815857,1770595841819,-438.1508519,0.000429,120]
[404815858,1770595841830,-438.1508519,0.000429,120]
[404815859,1770595841841,-438.1508519,0.000429,120]
[404815860,1770595841852,-150.0,0.00042946,120]
[404815861,1770595841863,-164.0,0.00042965,16]
[404815862,1770595841874,-150.0,0.00042973,10]
[404815863,1770595841885,-150.0,0.00042974,30]
[404815864,1770595841898,-212.0,0.00043,30]
[404815865,1770595841908,-780.35191,0.00043,20]
[404815866,1770595841919,-500.0,0.00043,120]
[404815867,1770595841930,-150.0,0.00043003,30]
[404815868,1770595841941,-150.0,0.00043003,30]
[404815869,1770595841953,-1183.55559934,0.00043021,28]
[404815870,1770595841964,-1957.35200228,0.00043036,2]
[404815871,1770595841977,-150.0,0.00043037,30]
[404815872,1770595841993,-200.0,0.00043068,120]
[404815873,1770595842004,-262.0,0.00043068,120]
[404815874,1770595842015,-154.0,0.000431,120]
[404815875,1770595842027,-150.0,0.000431,30]
[404815876,1770595842039,-150.0,0.00043185,30]
[404815877,1770595842049,-150.0,0.00043216,2]
[404815878,1770595842064,-616.0,0.00043216,2]
[404815879,1770595842075,-3484.0,0.00043216,2]
[404815880,1770595842086,-1297.90689178,0.00043227,15]
[404815881,1770595842098,-150.0,0.00043227,30]
[404815882,1770595842110,-2000.0,0.000433,2]
[404815883,1770595842120,-279.4086971,0.00043302,15]
[404815884,1770595842130,-38932.0,0.00043304,30]
[404815885,1770595842140,-109201.73505988,0.0004333,3]
[404815886,1770595842151,-150.0,0.00043339,120]
[404815887,1770595842163,-150.0,0.00043344,30]
[404815888,1770595842173,-150.0,0.00043344,30]
[404815889,1770595842183,-2721.0,0.00043352,16]
[404815890,1770595842194,-150.0,0.00043354,30]
[404815891,1770595842204,-168.0,0.00043363,2]
[404815892,1770595842215,-500.0,0.0004337,30]
[404815893,1770595842225,-840.0,0.00043382,16]
[404815894,1770595842236,-150.0,0.00043382,30]
[404815895,1770595842245,-196.0,0.00043392,16]
[404815896,1770595842255,-150.0,0.000434,120]
[404815897,1770595842265,-150.0,0.00043481,30]
[404815898,1770595842275,-150.0,0.00043481,30]
[404815899,1770595842287,-150.0,0.00043481,30]
[404815900,1770595842297,-251.3634381,0.00043521,10]
[404815901,1770595842308,-168.0,0.00043577,2]
[404815902,1770595842319,-1942.83916599,0.00043584,10]
[404815903,1770595842330,-820.59310254,0.00043597,30]
[404815904,1770595842343,-3500.0,0.000436,7]
[404815905,1770595842353,-150.0,0.00043607,30]
[404815906,1770595842363,-151.0,0.00043625,120]
[404815907,1770595842374,-840.0,0.00043628,16]
[404815908,1770595842384,-168.0,0.00043629,2]
[404815909,1770595842395,-245.67,0.00043642,2]
[404815910,1770595842404,-158.20041102,0.00043664,60]
[404815911,1770595842415,-150.0,0.00043685,30]
[404815912,1770595842425,-150.0,0.00043685,30]
[404815913,1770595842436,-2827.0,0.0004372,16]
[404815914,1770595842446,-2827.0,0.00043727,16]
[404815915,1770595842456,-150.0,0.00043734,30]
[404815916,1770595842465,-38932.0,0.00043746,30]
[404815917,1770595842475,-150.0,0.00043776,30]
[404815918,1770595842484,-1999.0,0.00043835,120]
[404815919,1770595842494,-150.0,0.00043861,30]
[404815920,1770595842504,-150.0,0.00043875,30]
[404815921,1770595842514,-150.0,0.00043924,30]
[404815922,1770595842523,-1802.6103816,0.00043956,120]
[404815923,1770595842534,-1603.6388582,0.00043961,2]
[404815924,1770595842545,-25000.0,0.00043976,15]
[404815925,1770595842558,-522.0,0.00043985,16]
[404815926,1770595842569,-25000.0,0.00043985,15]
[404815927,1770595842580,-150.0,0.00043988,30]
[404815928,1770595842591,-25000.0,0.00043994,15]
[404815929,1770595842600,-1000.0,0.00044,120]
[404815930,1770595842610,-10000.0,0.00044,120]
[404815931,1770595842619,-297.46,0.00044,120]
[404815932,1770595842629,-500.0,0.00044,120]
[404815933,1770595842638,-25000.0,0.00044003,15]
[404815935,1770595842648,-211.0,0.00044009,2]
[404815937,1770595842657,-25000.0,0.00044012,15]
[404815938,1770595842667,-25000.0,0.0004402,15]
[404815940,1770595842677,-150.0,0.00044027,30]
[404815941,1770595842688,-150.0,0.00044027,30]
[404815942,1770595842698,-10232.20367885,0.00044028,15]
[404815943,1770595842708,-25000.0,0.00044028,15]
[404815944,1770595842720,-3235.15221265,0.00044028,15]
[404815945,1770595842731,-2827.0,0.00044032,16]
[404815946,1770595842744,-21238.29689904,0.00044039,15]
[404815947,1770595842755,-2827.0,0.00044045,16]
[404815948,1770595842765,-151.0,0.00044046,60]
[404815949,1770595842777,-151.0,0.00044046,120]
[404815950,1770595842787,-151.0,0.00044046,120]
[404815951,1770595842798,-151.0,0.00044046,120]
[404815952,1770595842808,-151.0,0.00044046,120]
[404815953,1770595842818,-151.0,0.00044046,120]
[404815954,1770595842827,-185.192251,0.00044046,120]
[404815955,1770595842837,-151.0,0.00044046,120]
[404815956,1770595842846,-151.0,0.00044046,120]
[404815957,1770595842858,-151.0,0.00044046,120]
[404815958,1770595842870,-151.0,0.00044046,120]
[404815959,1770595842880,-151.0,0.00044046,120]
[404815960,1770595842890,-151.0,0.00044046,120]
[404815961,1770595842899,-151.0,0.00044046,28]
[404815962,1770595842909,-150.0,0.00044072,30]
[404815963,1770595842919,-154.9627414,0.00044082,2]
[404815964,1770595842929,-154.0,0.000441,120]
[404815965,1770595842940,-150.0,0.00044114,30]
[404815966,1770595842951,-2000.0,0.00044146,3]
[404815967,1770595842962,-2000.0,0.00044146,3]
[404815968,1770595842974,-150.0,0.00044175,120]
[404815969,1770595842985,-168.0,0.00044182,2]
[404815970,1770595842999,-168.0,0.00044185,2]
[404815971,1770595843010,-38932.0,0.00044187,30]
[404815972,1770595843020,-1297.90689178,0.000442,15]
[404815973,1770595843031,-150.0,0.00044241,30]
[404815974,1770595843043,-700.0,0.0004427,3]
[404815975,1770595843053,-19972.0,0.0004427,120]
[404815976,1770595843066,-500.0,0.00044271,60]
[404815977,1770595843076,-500.0,0.00044271,60]
[404815978,1770595843086,-500.0,0.00044271,60]
[404815979,1770595843095,-500.0,0.00044271,60]
[404815980,1770595843105,-500.0,0.00044271,60]
[404815981,1770595843115,-500.0,0.00044271,60]
[404815982,1770595843125,-500.0,0.00044271,60]
[404815983,1770595843135,-500.0,0.00044271,60]
[404815984,1770595843145,-500.0,0.00044271,60]
[404815985,1770595843155,-500.0,0.00044271,60]
[404815986,1770595843164,-500.0,0.00044271,60]
[404815987,1770595843174,-500.0,0.00044271,60]
[404815988,1770595843184,-500.0,0.00044271,60]
[404815989,1770595843193,-500.0,0.00044271,60]
[404815990,1770595843203,-500.0,0.00044271,60]
[404815991,1770595843213,-401.59477055,0.00044271,60]
[404815992,1770595843223,-532.62677375,0.00044271,15]
[404815993,1770595843233,-259.12404431,0.00044271,19]
[404815994,1770595843243,-1183.55559934,0.00044284,28]
[404815995,1770595843253,-5025.16350648,0.00044284,2]
[404815996,1770595843263,-1354.2091388,0.00044284,2]
[404815997,1770595843274,-279.4086971,0.00044284,15]
[404815998,1770595843285,-150.0,0.000443,74]
[404815999,1770595843295,-150.0,0.000443,29]
[404816000,1770595843304,-77883.69765978,0.000443,120]
[404816001,1770595843315,-152.0,0.000443,120]
[404816002,1770595843325,-253.0,0.000443,46]
[404816003,1770595843335,-150.0,0.000443,2]
[404816004,1770595843345,-210.78004,0.000443,26]
[404816005,1770595843355,-154.247552,0.00044331,120]
[404816006,1770595843365,-151.0,0.00044353,120]
[404816007,1770595843375,-500.0,0.00044356,120]
[404816008,1770595843385,-494.63817025,0.00044356,120]
[404816009,1770595843396,-500.0,0.00044356,120]
[404816010,1770595843405,-500.0,0.00044356,120]
[404816011,1770595843415,-500.0,0.00044356,120]
[404816012,1770595843424,-500.0,0.00044356,120]
[404816013,1770595843434,-239.86459775,0.00044356,120]
[404816014,1770595843444,-500.0,0.00044356,120]
[404816015,1770595843453,-500.0,0.00044356,120]
[404816016,1770595843463,-617.93042195,0.00044356,120]
[404816017,1770595843473,-500.0,0.00044356,120]
[404816018,1770595843482,-500.0,0.00044356,120]
[404816019,1770595843492,-511.28772603,0.00044356,120]
[404816020,1770595843502,-500.0,0.00044356,120]
[404816021,1770595843511,-525.13451835,0.00044356,120]
[404816022,1770595843521,-500.0,0.00044356,120]
[404816023,1770595843531,-577.44704913,0.00044356,120]
[404816024,1770595843540,-500.0,0.00044356,120]
[404816025,1770595843550,-500.0,0.00044356,120]
[404816026,1770595843560,-500.0,0.00044356,120]
[404816027,1770595843570,-500.0,0.00044356,120]
[404816028,1770595843581,-500.0,0.00044356,120]
[404816029,1770595843590,-500.0,0.00044356,120]
[404816030,1770595843600,-500.0,0.00044356,120]
[404816031,1770595843609,-510.11883875,0.00044356,120]
[404816032,1770595843619,-575.02524485,0.00044356,120]
[404816033,1770595843629,-500.0,0.00044356,120]
[404816034,1770595843639,-500.0,0.00044356,120]
[404816035,1770595843651,-547.69974266,0.00044356,120]
[404816036,1770595843661,-500.0,0.00044356,120]
[404816037,1770595843670,-508.06873793,0.00044356,120]
[404816038,1770595843680,-500.0,0.00044356,120]
[404816039,1770595843689,-555.6815294,0.00044356,120]
[404816040,1770595843699,-500.0,0.00044356,120]
[404816041,1770595843709,-527.18632166,0.00044356,120]
[404816042,1770595843720,-500.0,0.00044356,120]
[404816043,1770595843731,-529.91892595,0.00044356,120]
[404816044,1770595843740,-524.11963324,0.00044356,120]
[404816045,1770595843750,-500.0,0.00044356,120]
[404816046,1770595843759,-500.0,0.00044356,120]
[404816047,1770595843769,-542.02774768,0.00044356,120]
[404816048,1770595843779,-514.53562759,0.00044356,120]
[404816049,1770595843789,-500.0,0.00044356,120]
[404816050,1770595843798,-500.0,0.00044356,120]
[404816051,1770595843808,-500.0,0.00044356,120]
[404816052,1770595843818,-500.0,0.00044356,120]
[404816053,1770595843827,-500.0,0.00044356,120]
[404816054,1770595843837,-500.0,0.00044356,120]
[404816055,1770595843847,-500.0,0.00044356,120]
[404816056,1770595843856,-532.51105968,0.00044356,120]
[404816057,1770595843866,-500.0,0.00044356,120]
[404816058,1770595843877,-192.11318038,0.00044356,120]
[404816059,1770595843887,-238.30787666,0.00044356,120]
[404816060,1770595843898,-500.0,0.00044356,30]
[404816061,1770595843909,-500.0,0.00044356,30]
[404816062,1770595843918,-500.0,0.00044356,30]
[404816065,1770595844161,-500.0,0.00044356,30]
[404816066,1770595844175,-502.31991119,0.00044356,30]
[404816067,1770595844185,-500.0,0.00044356,120]
[404816068,1770595844194,-500.0,0.00044356,120]
[404816069,1770595844204,-500.0,0.00044356,120]
[404816070,1770595844213,-500.0,0.00044356,120]
[404816071,1770595844222,-629.68618892,0.00044356,120]
[404816072,1770595844231,-500.0,0.00044356,120]
[404816073,1770595844240,-506.46444736,0.00044356,120]
[404816074,1770595844250,-500.0,0.00044356,120]
[404816075,1770595844259,-500.0,0.00044356,120]
[404816076,1770595844268,-500.0,0.00044356,120]
[404816077,1770595844277,-500.0,0.00044356,120]
[404816078,1770595844286,-500.0,0.00044356,120]
[404816079,1770595844295,-500.0,0.00044356,120]
[404816080,1770595844304,-500.0,0.00044356,120]
[404816081,1770595844314,-539.40911628,0.00044356,120]
[404816082,1770595844323,-506.46476986,0.00044356,120]
[404816083,1770595844332,-500.0,0.00044356,120]
[404816084,1770595844341,-500.0,0.00044356,120]
[404816085,1770595844351,-500.0,0.00044356,120]
[404816086,1770595844360,-287.03504819,0.00044356,120]
[404816087,1770595844369,-507.79672333,0.00044356,120]
[404816088,1770595844377,-500.0,0.00044356,120]
[404816089,1770595844386,-500.0,0.00044356,120]
[404816090,1770595844396,-507.14410672,0.00044356,120]
[404816091,1770595844404,-500.0,0.00044356,30]
[404816092,1770595844413,-500.0,0.00044356,30]
[404816093,1770595844422,-541.00026758,0.00044356,30]
[404816094,1770595844431,-502.46575301,0.00044356,120]
[404816095,1770595844441,-243.55484211,0.00044356,120]
[404816096,1770595844450,-520.20381481,0.00044356,120]
[404816097,1770595844458,-607.18881585,0.00044356,120]
[404816098,1770595844466,-518.34107667,0.00044356,120]
[404816099,1770595844475,-500.0,0.00044356,120]
[404816100,1770595844484,-516.83948353,0.00044356,120]
[404816101,1770595844491,-500.0,0.00044356,120]
[404816102,1770595844500,-616.8911134,0.00044356,120]
[404816103,1770595844508,-555.618578,0.00044356,120]
[404816104,1770595844516,-500.0,0.00044356,120]
[404816105,1770595844524,-500.0,0.00044356,120]
[404816106,1770595844534,-537.50723132,0.00044356,120]
[404816107,1770595844544,-500.0,0.00044356,120]
[404816108,1770595844553,-500.0,0.00044356,120]
[404816109,1770595844562,-516.72776845,0.00044356,120]
[404816110,1770595844571,-500.0,0.00044356,120]
[404816111,1770595844580,-500.0,0.00044356,120]
[404816112,1770595844589,-500.0,0.00044356,120]
[404816113,1770595844598,-162.72923114,0.00044356,120]
[404816114,1770595844607,-500.0,0.00044356,120]
[404816115,1770595844616,-500.0,0.00044356,120]
[404816116,1770595844625,-527.38324384,0.00044356,120]
[404816117,1770595844635,-500.0,0.00044356,120]